bitfinex-derivatives/quotes_BNBF0:USTF0_20250609
["timestamp","ask_amount","ask_price","bid_price","bid_amount"]
[1749472885938,0.828,655.77,655.12,0.30528758]
[1749472893338,0.738,655.76,655.12,0.30528758]
[1749472905855,0.822,655.75,655.12,0.30528758]
[1749472907856,0.572,655.74,655.12,0.30528758]
[1749472911059,0.689,655.73,655.12,0.30528758]
[1749472927373,0.612,655.72,655.12,0.30528758]
[1749472938481,0.553,655.71,655.12,0.30528758]
[1749472940180,0.594,655.7,655.12,0.30528758]
[1749472942379,0.827,655.69,655.12,0.30528758]
[1749472951583,0.588,655.68,655.12,0.30528758]
[1749472959088,0.711,655.67,655.12,0.30528758]
[1749472961289,0.572,655.66,655.12,0.30528758]
[1749472974809,0.572,655.66,655.13,3.80106101]
[1749472975008,0.572,655.66,655.14,0.30527826]
[1749472976310,0.572,655.66,655.14,4.10633927]
[1749472976708,0.572,655.66,655.15,3.80106101]
[1749472977011,0.572,655.66,655.16,0.30526894]
[1749472978911,0.572,655.66,655.17,3.80106101]
[1749472979212,0.572,655.66,655.18,0.30525962]
[1749472979811,0.69,655.65,655.18,0.30525962]
[1749472985616,0.883,655.64,655.18,0.30525962]
[1749472993819,0.632,655.63,655.18,0.30525962]
[1749473003224,0.544,655.62,655.18,0.30525962]
[1749473005228,0.805,655.61,655.18,0.30525962]
[1749473006531,0.888,655.6,655.18,0.30525962]
[1749473014539,0.574,655.59,655.18,0.30525962]
[1749473014939,0.574,655.59,655.22,3.80106101]
[1749473016143,0.574,655.59,655.24,3.80106101]
[1749473017541,0.574,655.59,655.22,3.80106101]
[1749473018840,0.574,655.59,655.23,3.80106101]
[1749473020643,0.574,655.59,655.35,3.80106101]
[1749473021550,0.574,655.59,655.34,3.80106101]
[1749473022048,0.574,655.59,655.33,3.80106101]
[1749473022547,0.574,655.59,655.18,0.30525962]
[1749473022851,0.716,655.58,655.18,0.30525962]
[1749473037656,0.833,655.57,655.18,0.30525962]
[1749473048167,0.833,655.57,655.19,3.80106101]
[1749473048368,0.833,655.57,655.2,0.3052503]
[1749473048870,0.814,655.56,655.2,0.3052503]
[1749473049965,0.814,655.56,655.23,3.80106101]
[1749473050570,0.814,655.56,655.22,3.80106101]
[1749473051471,0.814,655.56,655.2,0.3052503]
[1749473053371,0.905,655.55,655.2,0.3052503]
[1749473061079,0.664,655.54,655.2,0.3052503]
[1749473062885,0.839,655.53,655.2,0.3052503]
[1749473071891,0.629,655.52,655.2,0.3052503]
[1749473089800,0.795,655.51,655.2,0.3052503]
[1749473096811,0.795,655.51,655.2,4.10631131]
[1749473097212,0.795,655.51,655.2,0.3052503]
[1749473098112,0.795,655.51,655.21,3.80106101]
[1749473098309,0.795,655.51,655.22,0.30524098]
[1749473101416,0.795,655.51,655.23,3.80106101]
[1749473101614,0.795,655.51,655.24,0.30523167]
[1749473101814,0.885,655.5,655.24,0.30523167]
[1749473102215,0.16311406,655.5,655.24,0.30523167]
[1749473102614,0.16311406,655.5,655.24,4.10629268]
[1749473103418,0.16311406,655.5,655.24,0.30523167]
[1749473104616,0.28377011,655.51,655.24,0.30523167]
[1749473104918,0.28377011,655.51,655.29,3.80106101]
[1749473105714,0.28377011,655.51,655.24,0.30523167]
[1749473107017,0.28377011,655.51,655.27,3.80106101]
[1749473107220,0.28377011,655.51,655.28,0.30521303]
[1749473107618,0.601,655.5,655.28,0.30521303]
[1749473108322,0.557,655.49,655.28,0.30521303]
[1749473126731,0.28377011,655.51,655.28,0.30521303]
[1749473127529,0.635,655.5,655.28,0.30521303]
[1749473156449,0.19137718,655.5,655.28,0.30521303]
[1749473156649,0.19137718,655.5,655.35,3.80106101]
[1749473156846,0.19137718,655.5,655.36,0.30517578]
[1749473160751,1.317,656.07,655.36,0.30517578]
[1749473161147,1.317,656.07,655.36,4.10623679]
[1749473161749,1.317,656.07,655.37,3.80106101]
[1749473162550,1.317,656.07,655.36,4.10623679]
[1749473163950,1.317,656.07,655.42,3.80106101]
[1749473164350,1.317,656.07,655.43,3.80106101]
[1749473164853,1.317,656.07,655.36,4.10623679]
[1749473166153,1.317,656.07,655.37,3.80106101]
[1749473167549,1.317,656.07,655.36,0.30517578]
[1749473180261,0.665,656.07,655.36,0.30517578]
[1749473183468,1.19128644,656.06,655.36,0.30517578]
[1749473183665,1.19128644,656.05,655.36,0.30517578]
[1749473183869,0.704,656.05,655.36,0.30517578]
[1749473185165,1.19092217,656.04,655.36,0.30517578]
[1749473185370,1.19092217,656.03,655.36,0.30517578]
[1749473185669,1.19092217,656.02,655.36,0.30517578]
[1749473185869,1.19092217,656.01,655.36,0.30517578]
[1749473186169,0.704,656.05,655.36,0.30517578]
[1749473186469,1.19064056,656.04,655.36,0.30517578]
[1749473186666,1.19064056,656.03,655.36,0.30517578]
[1749473186966,1.19064056,656.02,655.36,0.30517578]
[1749473187172,0.704,656.05,655.36,0.30517578]
[1749473187366,1.19042857,656.04,655.36,0.30517578]
[1749473187571,1.19042857,656.03,655.36,0.30517578]
[1749473187865,1.19042857,656.02,655.36,0.30517578]
[1749473188069,0.704,656.05,655.36,0.30517578]
[1749473188267,1.19025529,656.04,655.36,0.30517578]
[1749473188464,1.19025529,656.03,655.36,0.30517578]
[1749473188668,1.19025529,656.02,655.36,0.30517578]
[1749473188865,0.704,656.05,655.36,0.30517578]
[1749473189066,1.18961592,656.04,655.36,0.30517578]
[1749473189269,1.18961592,656.03,655.36,0.30517578]
[1749473189472,1.18961592,656.02,655.36,0.30517578]
[1749473189668,1.18961592,656.01,655.36,0.30517578]
[1749473189874,1.18961592,656.0,655.36,0.30517578]
[1749473190071,1.18912729,656.04,655.36,0.30517578]
[1749473190370,1.18912729,656.03,655.36,0.30517578]
[1749473190676,1.18912729,656.02,655.36,0.30517578]
[1749473190869,1.18912729,656.01,655.36,0.30517578]
[1749473191070,1.18909812,656.04,655.36,0.30517578]
[1749473191270,1.18909812,656.03,655.36,0.30517578]
[1749473191474,1.18909812,656.02,655.36,0.30517578]
[1749473191770,1.18909812,656.04,655.36,0.30517578]
[1749473191973,1.18909812,656.03,655.36,0.30517578]
[1749473192173,1.18909812,656.02,655.36,0.30517578]
[1749473192474,1.18909812,656.04,655.36,0.30517578]
[1749473192673,1.18909812,656.03,655.36,0.30517578]
[1749473192874,1.18909812,656.02,655.36,0.30517578]
[1749473193071,1.18909812,656.04,655.36,0.30517578]
[1749473193270,1.18909812,656.03,655.36,0.30517578]
[1749473193473,1.18909812,656.02,655.36,0.30517578]
[1749473193676,1.18909812,656.04,655.36,0.30517578]
[1749473193978,1.18909812,656.03,655.36,0.30517578]
[1749473194171,1.18909812,656.02,655.36,0.30517578]
[1749473194370,1.18909812,656.04,655.36,0.30517578]
[1749473194575,1.18909812,656.03,655.36,0.30517578]
[1749473194771,1.18909812,656.04,655.36,0.30517578]
[1749473195273,0.704,656.05,655.36,0.30517578]
[1749473196675,1.18909812,656.04,655.36,0.30517578]
[1749473196976,1.18909812,656.03,655.36,0.30517578]
[1749473197173,1.18909812,656.04,655.36,0.30517578]
[1749473197376,1.18909812,656.03,655.36,0.30517578]
[1749473197577,1.18909812,656.04,655.36,0.30517578]
[1749473197771,1.18909812,656.03,655.36,0.30517578]
[1749473197970,1.18909812,656.04,655.36,0.30517578]
[1749473198478,1.18909812,656.03,655.36,0.30517578]
[1749473198677,1.18909812,656.04,655.36,0.30517578]
[1749473198877,1.18909812,656.03,655.36,0.30517578]
[1749473199078,1.18909812,656.04,655.36,0.30517578]
[1749473200682,0.704,656.05,655.36,0.30517578]
[1749473201379,1.89309812,656.05,655.36,0.30517578]
[1749473201578,1.18909812,656.04,655.36,0.30517578]
[1749473202180,0.704,656.05,655.36,0.30517578]
[1749473202582,1.89309812,656.05,655.36,0.30517578]
[1749473202781,1.18909812,656.04,655.36,0.30517578]
[1749473203180,0.704,656.05,655.36,0.30517578]
[1749473204583,1.18909812,656.04,655.36,0.30517578]
[1749473204783,1.18909812,656.03,655.36,0.30517578]
[1749473204982,1.18909812,656.02,655.36,0.30517578]
[1749473205281,1.18909812,656.01,655.36,0.30517578]
[1749473205485,1.18909812,656.0,655.36,0.30517578]
[1749473205686,1.18909812,655.99,655.36,0.30517578]
[1749473205886,1.18909812,656.04,655.36,0.30517578]
[1749473206087,1.18909812,656.03,655.36,0.30517578]
[1749473206383,1.18909812,656.02,655.36,0.30517578]
[1749473206583,1.18909812,656.01,655.36,0.30517578]
[1749473206787,1.18909812,656.0,655.36,0.30517578]
[1749473206984,1.18909812,655.99,655.36,0.30517578]
[1749473207182,1.18909812,656.04,655.36,0.30517578]
[1749473207487,1.18909812,656.03,655.36,0.30517578]
[1749473207688,1.18909812,656.02,655.36,0.30517578]
[1749473207884,1.18909812,656.01,655.36,0.30517578]
[1749473208083,1.18909812,656.0,655.36,0.30517578]
[1749473208288,1.18909812,655.99,655.36,0.30517578]
[1749473208489,1.18909812,656.04,654.95,0.26542598]
[1749473208787,1.18909812,656.03,654.96,0.30536215]
[1749473208988,1.18909812,656.02,654.96,0.30536215]
[1749473209288,1.18909812,656.01,654.96,0.30536215]
[1749473209486,1.18909812,656.0,654.96,0.30536215]
[1749473210789,1.062,656.01,654.96,0.30536215]
[1749473211891,2.24719238,656.01,654.96,0.30536215]
[1749473212087,1.062,656.01,654.96,0.30536215]
[1749473213087,2.24684433,656.01,654.96,0.30536215]
[1749473213290,1.062,656.01,654.96,0.30536215]
[1749473214290,1.062,656.01,655.02,0.2654108]
[1749473214489,1.062,656.01,655.03,0.30532952]
[1749473230199,0.667,656.0,655.03,0.30532952]
[1749473238410,1.045,655.99,655.03,0.30532952]
[1749473245114,1.045,655.99,655.04,3.80106101]
[1749473245312,1.045,655.99,655.05,0.3053202]
[1749473246515,1.045,655.99,655.06,3.80106101]
[1749473246815,1.045,655.99,655.07,0.30531088]
[1749473248814,2.22596928,655.99,655.07,0.30531088]
[1749473249417,0.61,655.98,655.07,0.30531088]
[1749473249617,1.79096928,655.98,655.07,0.30531088]
[1749473251016,0.61,655.98,655.07,0.30531088]
[1749473252023,1.79866006,655.98,655.07,0.30531088]
[1749473253120,0.61,655.98,655.07,0.30531088]
[1749473253619,1.79860206,655.98,655.07,0.30531088]
[1749473254020,0.61,655.98,655.07,0.30531088]
[1749473254620,1.18722055,655.97,655.07,0.30531088]
[1749473254823,1.18722055,655.96,655.07,0.30531088]
[1749473255023,1.18722055,655.95,655.07,0.30531088]
[1749473255224,1.18722055,655.94,655.07,0.30531088]
[1749473255424,0.61,655.98,655.07,0.30531088]
[1749473255625,1.18719735,655.97,655.07,0.30531088]
[1749473255821,1.18719735,655.96,655.07,0.30531088]
[1749473256025,1.18719735,655.95,655.07,0.30531088]
[1749473256226,0.61,655.98,655.07,0.30531088]
[1749473256425,1.18717412,655.97,655.07,0.30531088]
[1749473256628,1.18717412,655.96,655.07,0.30531088]
[1749473256828,1.18717412,655.95,655.07,0.30531088]
[1749473257025,0.61,655.98,655.07,0.30531088]
[1749473257325,1.18718266,655.97,655.07,0.30531088]
[1749473257527,1.18718266,655.96,655.07,0.30531088]
[1749473257725,1.18718266,655.95,655.07,0.30531088]
[1749473258029,0.61,655.98,655.07,0.30531088]
[1749473258328,1.18717458,655.97,655.07,0.30531088]
[1749473258529,1.18717458,655.96,655.07,0.30531088]
[1749473258824,1.18717458,655.95,655.07,0.30531088]
[1749473259128,0.61,655.98,655.07,0.30531088]
[1749473259328,1.18743027,655.97,655.07,0.30531088]
[1749473259628,1.18743027,655.96,655.07,0.30531088]
[1749473259928,1.18743027,655.95,655.07,0.30531088]
[1749473260125,0.61,655.98,655.07,0.30531088]
[1749473260325,1.18742632,655.97,655.07,0.30531088]
[1749473260524,1.18742632,655.96,655.07,0.30531088]
[1749473260729,1.18742632,655.95,655.07,0.30531088]
[1749473260930,0.61,655.98,655.07,0.30531088]
[1749473261230,1.18742547,655.97,655.07,0.30531088]
[1749473261431,1.18742547,655.96,655.07,0.30531088]
[1749473261731,1.18742547,655.95,655.07,0.30531088]
[1749473261929,0.61,655.98,655.07,0.30531088]
[1749473262126,1.18741978,655.97,655.07,0.30531088]
[1749473262325,1.18741978,655.96,655.07,0.30531088]
[1749473262530,1.18741978,655.95,655.07,0.30531088]
[1749473262727,0.61,655.98,655.07,0.30531088]
[1749473262927,1.1873965,655.97,655.07,0.30531088]
[1749473263129,1.1873965,655.96,655.07,0.30531088]
[1749473263328,1.1873965,655.95,655.07,0.30531088]
[1749473263528,0.61,655.98,655.07,0.30531088]
[1749473263728,1.18738832,655.97,655.07,0.30531088]
[1749473263930,1.18738832,655.96,655.07,0.30531088]
[1749473264128,1.18738832,655.95,655.07,0.30531088]
[1749473264328,0.61,655.98,655.07,0.30531088]
[1749473264528,1.18736093,655.97,655.07,0.30531088]
[1749473264829,1.18736093,655.96,655.07,0.30531088]
[1749473265029,1.18736093,655.95,655.07,0.30531088]
[1749473265230,1.18736093,655.94,655.07,0.30531088]
[1749473265533,0.61,655.98,655.07,0.30531088]
[1749473265734,1.18735598,655.97,655.07,0.30531088]
[1749473265933,1.18735598,655.96,655.07,0.30531088]
[1749473266133,1.18735598,655.95,655.07,0.30531088]
[1749473266331,1.18735598,655.94,655.07,0.30531088]
[1749473266530,1.18735598,655.93,655.07,0.30531088]
[1749473266730,0.61,655.98,655.07,0.30531088]
[1749473266935,1.1873493,655.97,655.07,0.30531088]
[1749473267136,1.1873493,655.96,655.07,0.30531088]
[1749473267335,1.1873493,655.95,655.07,0.30531088]
[1749473267535,1.1873493,655.94,655.07,0.30531088]
[1749473267732,1.1873386,655.93,655.07,0.30531088]
[1749473268032,0.61,655.98,655.07,0.30531088]
[1749473268230,1.18733749,655.97,655.07,0.30531088]
[1749473268536,1.18733749,655.96,655.07,0.30531088]
[1749473268732,1.18733749,655.95,655.07,0.30531088]
[1749473268931,1.18733749,655.94,655.07,0.30531088]
[1749473269135,0.61,655.98,655.07,0.30531088]
[1749473269332,1.18732707,655.97,655.07,0.30531088]
[1749473269531,1.18732707,655.96,655.07,0.30531088]
[1749473269734,1.18732707,655.95,655.07,0.30531088]
[1749473269935,1.18732707,655.94,655.07,0.30531088]
[1749473270136,0.61,655.98,655.07,0.30531088]
[1749473270335,1.18707989,655.97,655.07,0.30531088]
[1749473270535,1.18707989,655.96,655.07,0.30531088]
[1749473270733,1.18707989,655.95,655.07,0.30531088]
[1749473270933,1.18707989,655.94,655.07,0.30531088]
[1749473271137,0.979,655.94,655.07,0.30531088]
[1749473272235,1.18701765,655.93,655.07,0.30531088]
[1749473272433,0.979,655.94,655.07,0.30531088]
[1749473272638,1.18701087,655.93,655.07,0.30531088]
[1749473272937,0.979,655.94,655.07,0.30531088]
[1749473273137,1.18701237,655.93,655.07,0.30531088]
[1749473273434,0.979,655.94,655.07,0.30531088]
[1749473273636,1.18697852,655.93,655.07,0.30531088]
[1749473273837,0.979,655.94,655.07,0.30531088]
[1749473274035,1.18697852,655.93,655.07,0.30531088]
[1749473274233,0.979,655.94,655.07,0.30531088]
[1749473274436,1.18695582,655.93,655.07,0.30531088]
[1749473274635,0.979,655.94,655.07,0.30531088]
[1749473274833,1.18682213,655.93,655.07,0.30531088]
[1749473275035,0.979,655.94,655.07,0.30531088]
[1749473275334,1.18679893,655.93,655.07,0.30531088]
[1749473275534,0.979,655.94,655.07,0.30531088]
[1749473275734,1.18679933,655.93,655.07,0.30531088]
[1749473275937,1.18679933,655.92,655.07,0.30531088]
[1749473276240,0.979,655.94,655.07,0.30531088]
[1749473276436,1.18678633,655.93,655.07,0.30531088]
[1749473276636,1.18678633,655.92,655.07,0.30531088]
[1749473276840,1.18678633,655.91,655.07,0.30531088]
[1749473277040,0.979,655.94,655.07,0.30531088]
[1749473277342,1.18674436,655.93,655.07,0.30531088]
[1749473277640,1.18674436,655.92,655.07,0.30531088]
[1749473277942,0.979,655.94,655.07,0.30531088]
[1749473278240,1.1867191,655.93,655.07,0.30531088]
[1749473278438,1.1867191,655.92,655.07,0.30531088]
[1749473278637,1.1867191,655.91,655.07,0.30531088]
[1749473278939,0.979,655.94,655.07,0.30531088]
[1749473279141,1.18668127,655.93,655.07,0.30531088]
[1749473279340,1.18668127,655.92,655.07,0.30531088]
[1749473279539,1.18668127,655.91,655.07,0.30531088]
[1749473279838,0.979,655.94,655.07,0.30531088]
[1749473280043,1.18663198,655.93,655.07,0.30531088]
[1749473280238,0.979,655.94,655.07,0.30531088]
[1749473280239,1.18663198,655.92,655.07,0.30531088]
[1749473280439,1.18663198,655.91,655.07,0.30531088]
[1749473280742,0.979,655.94,655.07,0.30531088]
[1749473280940,1.18661374,655.93,655.07,0.30531088]
[1749473281143,1.18661374,655.92,655.07,0.30531088]
[1749473281442,1.18661374,655.91,655.07,0.30531088]
[1749473281640,0.979,655.94,655.07,0.30531088]
[1749473281839,1.18658309,655.93,655.07,0.30531088]
[1749473282044,1.18658309,655.92,655.07,0.30531088]
[1749473282339,1.18658309,655.91,655.07,0.30531088]
[1749473282540,0.979,655.94,655.07,0.30531088]
[1749473282742,1.1865756,655.93,655.07,0.30531088]
[1749473282942,1.1865756,655.92,655.07,0.30531088]
[1749473283145,1.1865756,655.91,655.07,0.30531088]
[1749473283348,0.756,655.92,655.07,0.30531088]
[1749473283543,1.18660089,655.91,655.07,0.30531088]
[1749473283747,1.18660089,655.9,655.07,0.30531088]
[1749473284042,0.756,655.92,655.07,0.30531088]
[1749473284247,1.18659895,655.91,655.07,0.30531088]
[1749473284447,1.18659895,655.9,655.07,0.30531088]
[1749473284646,0.756,655.92,655.07,0.30531088]
[1749473287551,0.593,655.91,655.07,0.30531088]
[1749473294760,1.18669682,655.9,655.07,0.30531088]
[1749473294960,1.18669682,655.89,655.07,0.30531088]
[1749473295256,0.593,655.91,655.07,0.30531088]
[1749473295460,1.1863349,655.9,655.07,0.30531088]
[1749473295661,1.1863349,655.89,655.07,0.30531088]
[1749473295855,1.1863349,655.88,655.07,0.30531088]
[1749473296159,0.593,655.91,655.07,0.30531088]
[1749473296355,1.18633271,655.9,655.07,0.30531088]
[1749473296559,1.18633271,655.89,655.07,0.30531088]
[1749473296756,1.18633271,655.88,655.07,0.30531088]
[1749473296959,0.593,655.91,655.07,0.30531088]
[1749473297162,1.18643015,655.9,655.07,0.30531088]
[1749473297458,1.18643015,655.89,655.07,0.30531088]
[1749473297663,1.18643015,655.88,655.07,0.30531088]
[1749473297862,1.18643015,655.87,655.07,0.30531088]
[1749473298063,0.602,655.88,655.07,0.30531088]
[1749473298362,1.18654557,655.87,655.07,0.30531088]
[1749473298560,0.602,655.88,655.07,0.30531088]
[1749473298761,1.18666182,655.87,655.07,0.30531088]
[1749473298966,0.602,655.88,655.07,0.30531088]
[1749473299260,1.18646246,655.87,655.07,0.30531088]
[1749473299562,0.602,655.88,655.07,0.30531088]
[1749473299765,1.18659631,655.87,655.07,0.30531088]
[1749473299959,0.602,655.88,655.07,0.30531088]
[1749473300162,1.18659631,655.87,655.07,0.30531088]
[1749473300361,1.18674963,655.86,655.07,0.30531088]
[1749473300565,0.602,655.88,655.07,0.30531088]
[1749473300760,1.18674804,655.87,655.07,0.30531088]
[1749473300961,1.18674804,655.86,655.07,0.30531088]
[1749473301263,0.602,655.88,655.07,0.30531088]
[1749473301465,1.18692287,655.87,655.07,0.30531088]
[1749473301665,1.18692287,655.86,655.07,0.30531088]
[1749473301866,0.602,655.88,655.07,0.30531088]
[1749473302262,1.18692204,655.87,655.07,0.30531088]
[1749473302560,0.602,655.88,655.07,0.30531088]
[1749473302561,1.18692204,655.86,655.07,0.30531088]
[1749473302761,0.602,655.88,655.07,0.30531088]
[1749473302966,1.1869636,655.87,655.07,0.30531088]
[1749473303166,1.1869636,655.86,655.07,0.30531088]
[1749473303461,0.602,655.88,655.07,0.30531088]
[1749473303666,1.18702048,655.87,655.07,0.30531088]
[1749473303865,1.18702048,655.86,655.07,0.30531088]
[1749473304066,0.602,655.88,655.07,0.30531088]
[1749473304363,1.18702108,655.87,655.07,0.30531088]
[1749473304566,1.18702108,655.86,655.07,0.30531088]
[1749473304765,1.18702108,655.85,655.07,0.30531088]
[1749473305066,0.602,655.88,655.07,0.30531088]
[1749473305264,1.18697908,655.87,655.07,0.30531088]
[1749473305465,1.18697908,655.86,655.07,0.30531088]
[1749473305666,1.18697908,655.85,655.07,0.30531088]
[1749473305865,0.602,655.88,655.07,0.30531088]
[1749473306068,1.18713826,655.87,655.07,0.30531088]
[1749473306268,0.602,655.88,655.07,0.30531088]
[1749473306269,1.18713826,655.86,655.07,0.30531088]
[1749473306464,1.18713826,655.85,655.07,0.30531088]
[1749473306668,0.602,655.88,655.07,0.30531088]
[1749473306869,1.18731514,655.87,655.07,0.30531088]
[1749473307066,1.18731514,655.86,655.07,0.30531088]
[1749473307367,1.18731514,655.85,655.07,0.30531088]
[1749473307570,1.18731514,655.84,655.07,0.30531088]
[1749473307869,0.616,655.84,655.07,0.30531088]
[1749473314873,0.779,655.83,655.07,0.30531088]
[1749473322177,1.18826731,655.82,655.07,0.30531088]
[1749473322379,0.779,655.83,655.07,0.30531088]
[1749473322581,1.18829843,655.82,655.07,0.30531088]
[1749473322875,1.18829843,655.81,655.07,0.30531088]
[1749473323179,0.779,655.83,655.07,0.30531088]
[1749473323381,1.18828684,655.82,655.07,0.30531088]
[1749473323576,1.18828684,655.81,655.07,0.30531088]
[1749473323777,0.779,655.83,655.07,0.30531088]
[1749473323981,1.18835134,655.82,655.07,0.30531088]
[1749473324180,1.18835134,655.81,655.07,0.30531088]
[1749473324381,0.779,655.83,655.07,0.30531088]
[1749473324576,1.18837782,655.82,655.07,0.30531088]
[1749473324780,1.18837782,655.81,655.07,0.30531088]
[1749473324977,1.18837782,655.8,655.07,0.30531088]
[1749473325281,1.18837782,655.79,655.07,0.30531088]
[1749473325481,0.779,655.83,655.07,0.30531088]
[1749473325778,1.18843331,655.82,655.07,0.30531088]
[1749473325977,1.18843331,655.81,655.07,0.30531088]
[1749473326280,1.18843331,655.8,655.07,0.30531088]
[1749473326480,1.18843331,655.79,655.07,0.30531088]
[1749473326677,0.779,655.83,655.07,0.30531088]
[1749473326880,1.18845248,655.82,655.07,0.30531088]
[1749473327181,1.18845248,655.81,655.07,0.30531088]
[1749473327381,1.18845248,655.8,655.07,0.30531088]
[1749473327579,1.18849103,655.79,655.07,0.30531088]
[1749473327782,0.779,655.83,655.07,0.30531088]
[1749473328078,1.18848976,655.82,655.07,0.30531088]
[1749473328282,1.18848976,655.81,655.07,0.30531088]
[1749473328580,1.18848976,655.8,655.07,0.30531088]
[1749473328782,1.18848976,655.79,655.07,0.30531088]
[1749473328982,0.779,655.83,655.07,0.30531088]
[1749473329282,1.18870184,655.82,655.07,0.30531088]
[1749473329483,1.18870184,655.81,655.07,0.30531088]
[1749473329779,1.18870184,655.8,655.07,0.30531088]
[1749473329983,1.18870184,655.79,655.07,0.30531088]
[1749473330180,0.86,655.82,655.07,0.30531088]
[1749473330481,1.18922137,655.81,655.07,0.30531088]
[1749473330783,1.18922137,655.8,655.07,0.30531088]
[1749473330980,1.18922137,655.79,655.07,0.30531088]
[1749473331181,0.86,655.82,655.07,0.30531088]
[1749473331380,1.18927722,655.81,655.07,0.30531088]
[1749473331581,1.18927722,655.8,655.07,0.30531088]
[1749473331779,1.18927722,655.79,655.07,0.30531088]
[1749473331984,0.86,655.82,655.07,0.30531088]
[1749473332279,1.18933078,655.81,655.07,0.30531088]
[1749473332480,1.18933078,655.8,655.07,0.30531088]
[1749473332683,1.18933078,655.79,655.07,0.30531088]
[1749473332983,0.86,655.82,655.07,0.30531088]
[1749473333278,1.18935848,655.81,655.07,0.30531088]
[1749473333483,1.18935848,655.8,655.07,0.30531088]
[1749473333781,1.18935848,655.79,655.07,0.30531088]
[1749473334079,1.18913865,655.78,655.07,0.30531088]
[1749473334279,0.86,655.82,655.07,0.30531088]
[1749473334477,1.18919733,655.81,655.07,0.30531088]
[1749473334683,0.86,655.82,655.07,0.30531088]
[1749473335481,1.1893374,655.81,655.07,0.30531088]
[1749473335684,0.86,655.82,655.07,0.30531088]
[1749473335882,1.18933837,655.81,655.07,0.30531088]
[1749473336081,0.86,655.82,655.07,0.30531088]
[1749473336385,1.1893462,655.81,655.07,0.30531088]
[1749473336685,0.86,655.82,655.07,0.30531088]
[1749473336885,1.18935985,655.81,655.07,0.30531088]
[1749473337085,0.86,655.82,655.07,0.30531088]
[1749473337285,1.18935667,655.81,655.07,0.30531088]
[1749473337582,0.86,655.82,655.07,0.30531088]
[1749473337783,0.707,655.8,655.07,0.30531088]
[1749473341890,1.07,655.79,655.07,0.30531088]
[1749473342790,0.78,655.78,655.07,0.30531088]
[1749473347295,0.26547052,655.72,655.07,0.30531088]
[1749473354602,0.876,655.71,655.07,0.30531088]
[1749473363906,0.866,655.7,655.07,0.30531088]
[1749473371416,0.685,655.69,655.07,0.30531088]
[1749473393732,0.582,655.68,655.07,0.30531088]
[1749473405834,0.805,655.67,655.07,0.30531088]
[1749473412344,0.646,655.66,655.07,0.30531088]
[1749473423650,0.686,655.65,655.07,0.30531088]
[1749473436059,0.635,655.64,655.07,0.30531088]
[1749473439464,1.035,655.63,655.07,0.30531088]
[1749473464683,0.596,655.62,655.07,0.30531088]
[1749473468889,0.659,655.61,655.07,0.30531088]
[1749473493911,0.849,655.6,655.07,0.30531088]
[1749473498214,0.769,655.59,655.07,0.30531088]
[1749473514432,0.829,655.58,655.07,0.30531088]
[1749473528542,0.915,655.57,655.07,0.30531088]
[1749473536952,0.915,655.57,655.11,3.80106101]
[1749473537149,0.915,655.57,655.12,0.30528758]
[1749473538048,0.915,655.57,655.12,4.10634859]
[1749473538852,0.554,655.56,655.12,0.30528758]
[1749473544358,0.554,655.56,655.12,4.10634859]
[1749473545259,0.554,655.56,655.13,3.80106101]
[1749473545458,0.554,655.56,655.14,0.30527826]
[1749473545854,0.725,655.55,655.14,0.30527826]
[1749473559365,0.618,655.54,655.14,0.30527826]
[1749473561664,0.671,655.53,655.14,0.30527826]
[1749473579178,0.892,655.52,655.14,0.30527826]
[1749473584687,0.856,655.51,655.14,0.30527826]
[1749473595898,0.856,655.51,655.2,3.80106101]
[1749473596097,0.856,655.51,655.21,0.30524564]
[1749473622315,0.856,655.51,655.24,3.80106101]
[1749473622518,0.856,655.51,655.24,4.10629268]
[1749473622716,0.26541788,656.08,655.25,3.80106101]
[1749473623619,0.26541788,656.08,655.29,3.80106101]
[1749473623820,0.689,656.07,655.29,3.80106101]
[1749473624521,0.689,656.07,655.28,3.80106101]
[1749473624820,0.689,656.07,655.29,3.80106101]
[1749473625920,0.68,656.06,655.3,3.80106101]
[1749473626421,0.838,656.05,655.28,3.80106101]
[1749473626716,0.838,656.05,655.29,3.80106101]
[1749473628419,0.838,656.05,655.3,3.80106101]
[1749473629424,0.838,656.05,655.32,3.80106101]
[1749473631624,0.838,656.05,655.33,3.80106101]
[1749473633024,0.838,656.05,655.34,3.80106101]
[1749473633825,0.838,656.05,655.32,3.80106101]
[1749473634328,0.838,656.05,655.33,3.80106101]